bitfinex-derivatives/quotes_ETHF0:USTF0_20250102
["timestamp","ask_amount","ask_price","bid_price","bid_amount"]
[1735831011685,3.15319,3489.8,3489.7,3.2078]
[1735831011885,2.8664,3489.8,3489.7,3.4946]
[1735831012289,2.8664,3489.8,3489.7,3.2078]
[1735831012994,3.15319,3489.8,3489.7,3.2078]
[1735831013194,2.8664,3489.8,3489.7,3.2078]
[1735831013687,0.28682,3489.5,3489.3,3.2078]
[1735831013896,2.8664,3489.4,3489.3,3.2078]
[1735831014190,2.8664,3489.4,3489.3,3.49463]
[1735831015094,2.8664,3489.4,3488.9,3.2078]
[1735831015390,0.28689,3488.5,3488.0,1.64593]
[1735831015582,2.8664,3488.1,3487.9,3.2078]
[1735831015785,3.15334,3488.0,3487.9,3.2078]
[1735831015988,0.28698,3487.5,3487.3,6.097875]
[1735831016291,3.15339,3487.4,3487.3,4.451885]
[1735831016891,0.287,3487.3,3487.1,3.49481]
[1735831017393,0.28699,3487.4,3487.2,0.287]
[1735831017588,3.15339,3487.4,3487.2,0.287]
[1735831017791,0.28699,3487.3,3487.2,0.287]
[1735831017986,3.15339,3487.3,3487.1,3.2078]
[1735831018187,2.8664,3487.2,3487.1,3.4948]
[1735831018393,2.8664,3487.2,3487.1,3.7242]
[1735831019092,3.2078,3488.0,3487.1,3.4372]
[1735831019292,3.2078,3488.0,3487.9,0.28694]
[1735831019594,0.28689,3488.6,3488.4,0.2869]
[1735831019792,2.8664,3488.5,3488.4,0.2869]
[1735831020493,0.28689,3488.7,3488.4,0.2869]
[1735831020692,2.8664,3488.5,3488.3,0.28691]
[1735831020895,2.8664,3488.5,3488.4,0.2869]
[1735831021093,2.8664,3488.5,3488.0,3.2078]
[1735831021291,3.15331,3488.4,3488.2,0.28691]
[1735831021595,3.15331,3488.4,3488.2,0.28692]
[1735831021796,3.2078,3489.0,3488.5,0.28689]
[1735831021997,2.8664,3488.6,3488.5,0.28689]
[1735831023092,3.2078,3489.0,3488.4,3.2078]
[1735831023293,2.8664,3488.9,3488.4,3.2078]
[1735831023492,3.2078,3489.0,3488.5,0.4484035]
[1735831023691,2.8664,3488.5,3488.4,3.2078]
[1735831023996,2.8664,3488.5,3488.4,0.73535956]
[1735831024300,2.8664,3488.5,3488.4,0.44845956]
[1735831024599,0.28688,3488.8,3488.6,0.28688]
[1735831024799,0.28688,3488.8,3488.4,0.44845956]
[1735831024800,2.8664,3488.9,3488.8,0.28687]
[1735831024990,3.2078,3489.0,3488.9,0.28686]
[1735831025401,3.2078,3489.6,3489.5,0.28681]
[1735831026208,6.0742,3489.6,3489.0,0.4235]
[1735831026494,3.2078,3489.6,3489.5,0.28681]
[1735831026999,3.2078,3489.6,3489.5,0.44831509]
[1735831027000,3.1532,3489.6,3489.5,0.44831509]
[1735831027496,0.71704,3489.5,3488.5,0.71747973]
[1735831027695,2.8664,3488.8,3488.5,0.71747973]
[1735831027891,0.28688,3488.7,3488.6,0.44843609]
[1735831028096,0.28688,3488.7,3488.6,0.73532609]
[1735831028402,3.2078,3489.2,3488.5,0.28689]
[1735831028590,2.8664,3488.8,3488.3,3.2078]
[1735831028897,3.15329,3488.5,3488.4,0.73533463]
[1735831029098,2.8664,3488.5,3488.4,0.73533463]
[1735831029295,3.2078,3489.2,3488.4,0.44843463]
[1735831029498,3.15328,3488.7,3488.5,0.28689]
[1735831029796,2.8664,3488.7,3488.5,0.73532463]
[1735831030097,2.8664,3488.7,3488.6,0.44843463]
[1735831030400,5.0,3488.7,3487.1,0.2294]
[1735831030601,3.1534,3487.2,3487.1,0.2294]
[1735831030788,6.3612,3487.2,3487.1,0.2294]
[1735831031501,3.1534,3487.2,3487.1,0.2294]
[1735831032004,2.8664,3487.2,3487.1,0.2294]
[1735831032191,3.1534,3487.2,3487.1,0.2294]
[1735831032392,2.8664,3487.2,3487.1,0.2294]
[1735831032699,3.1534,3487.2,3487.1,0.2294]
[1735831034097,2.8664,3487.2,3487.1,0.51641]
[1735831034396,3.2078,3488.3,3487.1,5.2294]
[1735831034696,2.8664,3487.8,3487.6,0.28697]
[1735831034897,2.8664,3487.8,3487.1,0.2294]
[1735831035198,2.8664,3487.8,3487.7,0.28696]
[1735831035395,3.15335,3487.8,3487.5,0.28697]
[1735831035696,2.8664,3487.8,3487.7,0.28696]
[1735831035903,2.8664,3487.8,3487.6,0.28697]
[1735831036097,2.8664,3487.8,3487.7,0.28696]
[1735831036400,2.8664,3487.7,3487.5,0.28697]
[1735831036698,2.8664,3487.7,3487.6,0.28697]
[1735831037103,0.458,3488.6,3487.3,3.2078]
[1735831037293,0.458,3488.6,3487.9,3.2078]
[1735831037498,2.8664,3488.0,3487.9,3.49474]
[1735831038502,2.8664,3488.0,3487.4,5.0077]
[1735831038697,2.8664,3487.7,3487.6,0.28696]
[1735831039105,3.2078,3488.2,3487.9,0.28694]
[1735831039304,2.8664,3488.0,3487.4,5.0077]
[1735831039499,2.8664,3487.8,3487.4,5.0077]
[1735831039701,2.8664,3487.8,3487.7,0.28696]
[1735831040199,2.8664,3487.8,3487.5,0.28698]
[1735831040402,3.15336,3487.8,3487.5,0.28697]
[1735831040705,3.15336,3487.8,3487.7,0.28696]
[1735831040706,2.8664,3487.8,3487.7,0.28696]
[1735831041704,2.8664,3487.8,3487.6,0.28696]
[1735831042204,2.8664,3487.8,3487.7,0.28696]
[1735831042400,2.8664,3487.5,3487.4,3.2078]
[1735831042598,2.8664,3487.6,3487.5,0.28698]
[1735831042796,2.8664,3487.8,3487.5,0.28698]
[1735831043002,2.8664,3487.8,3487.5,0.44856213]
[1735831043202,2.8664,3487.8,3487.6,0.44856213]
[1735831043406,2.8664,3487.8,3487.7,0.28696]
[1735831043601,2.8664,3487.8,3487.7,0.73552213]
[1735831044103,3.2078,3488.7,3488.6,0.28689]
[1735831044295,2.8664,3488.8,3488.6,0.44856213]
[1735831044507,2.8664,3488.8,3488.7,0.28688]
[1735831044702,2.8664,3488.8,3488.7,0.73544213]
[1735831045202,3.3489359,3489.4,3489.3,0.28683]
[1735831045407,2.8664,3488.9,3488.7,3.65636213]
[1735831045615,2.8664,3488.9,3488.8,0.73543213]
[1735831046710,3.15326,3488.9,3488.8,0.44856213]
[1735831048002,2.8664,3488.9,3488.8,0.44856213]
[1735831048210,3.2078,3489.9,3488.8,5.44856213]
[1735831048405,2.8664,3489.7,3489.6,0.2868]
[1735831048805,2.8664,3489.7,3489.6,0.73536213]
[1735831049509,2.8664,3489.7,3489.6,0.44856213]
[1735831049808,2.8664,3489.7,3489.6,0.73536213]
[1735831050109,3.1532,3489.7,3489.6,0.44856213]
[1735831051016,2.8664,3489.7,3488.9,3.2078]
[1735831051200,2.8664,3489.1,3489.0,0.73520816]
[1735831051605,2.8664,3489.1,3489.0,0.73521517]
[1735831051805,2.8664,3489.1,3489.0,0.44836517]
[1735831052206,3.15325,3489.1,3489.0,0.44836517]
[1735831052907,2.8664,3489.1,3489.0,0.73521517]
[1735831054011,3.2078,3489.9,3489.6,0.2868]
[1735831054413,2.8664,3489.7,3489.6,0.2868]
[1735831054609,2.8664,3489.7,3488.9,3.2078]
[1735831054809,2.8664,3489.2,3489.1,0.28685]
[1735831055310,2.8664,3489.2,3489.1,0.73521501]
[1735831057814,3.2078,3490.0,3489.9,0.28678]
[1735831058214,6.0742,3490.0,3489.9,0.28678]
[1735831059110,0.28678,3489.9,3489.8,0.28679]
[1735831059315,2.8664,3489.7,3489.4,5.28185]
[1735831059516,2.8664,3489.7,3489.6,0.2868]
[1735831059727,2.8664,3489.7,3489.6,0.73509404]
[1735831060115,2.8664,3489.7,3489.6,0.44829404]
[1735831060323,3.1532,3489.7,3489.6,0.44829404]
[1735831060619,3.1532,3489.7,3489.1,1.357]
[1735831060620,2.8664,3489.7,3489.1,1.357]
[1735831060819,3.2078,3490.0,3489.2,3.2078]
[1735831061122,2.8664,3489.7,3489.6,0.2868]
[1735831061626,2.8664,3489.7,3489.6,0.96431777]
[1735831061918,2.8664,3489.7,3489.6,0.516]
[1735831062119,3.2078,3490.4,3489.6,4.15401]
[1735831062316,0.28675,3490.3,3490.1,0.28676]
[1735831062824,2.8664,3490.2,3490.1,0.28676]
[1735831063118,2.8664,3490.2,3489.6,0.2292]
[1735831063321,2.8664,3489.7,3489.6,0.2292]
[1735831063519,3.1532,3489.7,3489.6,0.516]
[1735831063824,3.1532,3489.7,3489.6,0.2292]
[1735831064830,3.1532,3489.7,3489.2,3.2078]
[1735831065014,2.8664,3489.3,3488.4,4.451885]
[1735831065317,3.15329,3488.5,3488.4,4.451885]
[1735831065713,0.2869,3488.4,3488.3,3.8260847]
[1735831065920,5.0,3488.5,3487.8,6.73071328]
[1735831066127,8.45354,3487.9,3487.8,5.04776864]
[1735831066326,5.87297035,3487.9,3487.8,5.02966864]
[1735831066517,10.87297035,3487.9,3487.8,5.02966864]
[1735831067528,10.87297035,3487.9,3486.8,0.28703]
[1735831067529,0.28702,3487.0,3486.8,0.28703]
[1735831067825,3.2078,3487.3,3486.7,8.36004]
[1735831068029,0.28703,3486.9,3486.7,8.36004]
[1735831068434,0.28703,3486.8,3486.7,8.073]
[1735831070034,3.2078,3487.3,3486.7,8.073]
[1735831070234,3.2078,3487.3,3487.2,0.287]
[1735831070536,3.4948,3487.3,3487.0,0.28702]
[1735831071236,3.4948,3487.3,3487.1,0.28701]
[1735831071626,0.287,3487.2,3487.0,0.28701]
[1735831071829,3.2078,3487.3,3486.7,2.90309707]
[1735831072128,0.28701,3487.1,3486.9,0.28702]
[1735831072328,3.2078,3487.3,3486.7,2.90309707]
[1735831072531,3.2078,3487.9,3486.8,0.71759]
[1735831072742,3.3489359,3488.2,3487.1,0.28701]
[1735831072743,0.287,3487.3,3487.1,0.28701]
[1735831073132,3.2078,3487.5,3486.8,0.4381]
[1735831073338,3.2078,3487.5,3486.8,0.72513]
[1735831073540,0.28701,3487.1,3486.8,0.72513]
[1735831073944,3.2078,3486.9,3486.7,2.90309707]
[1735831074142,0.28703,3486.8,3486.7,2.90309707]
[1735831075847,0.28703,3486.8,3486.7,2.585]
[1735831076349,5.28703,3486.8,3486.7,2.585]
[1735831076547,5.28703,3486.8,3485.4,3.2078]
[1735831076548,1.00467,3486.7,3485.4,3.2078]
[1735831076747,0.28714,3485.6,3485.4,3.2078]
[1735831077048,0.28714,3485.6,3485.4,3.49495]
[1735831077236,3.2078,3485.9,3484.9,0.9067]
[1735831077440,3.2078,3485.5,3484.9,0.4493]
[1735831077742,0.28722,3484.6,3484.5,1.15164]
[1735831077939,0.28721,3484.7,3484.5,1.15164]
[1735831078137,8.2078,3485.0,3484.5,1.15164]
[1735831078449,3.2078,3485.0,3484.5,1.15164]
[1735831078650,0.28716,3485.4,3485.0,0.28718]
[1735831078943,3.2078,3485.1,3484.5,1.15164]
[1735831079144,3.2078,3485.1,3485.0,0.28718]
[1735831079342,3.2078,3485.1,3484.5,1.15164]
[1735831079838,3.2078,3485.1,3484.9,0.28719]
[1735831080040,3.2078,3485.1,3484.5,1.15164]
[1735831080041,0.28716,3485.3,3485.0,0.28718]
[1735831080239,3.49494,3485.6,3485.3,0.28716]
[1735831080446,3.49494,3485.6,3484.8,3.2078]
[1735831080447,3.2078,3485.6,3485.5,0.28714]
[1735831080748,3.2078,3485.6,3485.4,0.28714]
[1735831081144,3.2078,3485.6,3484.9,0.4553]
[1735831081644,3.2078,3485.6,3485.3,0.28715]
[1735831081850,0.28714,3485.6,3485.3,0.28715]
[1735831082048,3.49494,3485.6,3485.3,0.28715]
[1735831082344,3.2078,3485.6,3484.9,0.4553]
[1735831082651,3.49494,3485.6,3485.4,0.28715]
[1735831082947,3.2078,3486.1,3484.9,3.6631]
[1735831083146,3.2078,3485.7,3484.9,3.6631]
[1735831083337,0.28717,3485.2,3485.0,0.28718]
[1735831083852,0.28716,3485.3,3485.1,0.28717]
[1735831084045,3.2078,3485.7,3484.9,3.6631]
[1735831084245,0.28717,3485.3,3484.9,3.6631]
[1735831084456,3.2078,3485.7,3484.9,3.6631]
[1735831084644,3.2078,3485.7,3485.2,0.28716]
[1735831084838,0.28717,3485.2,3484.9,3.6631]
[1735831085045,3.2078,3485.7,3484.9,3.6631]
[1735831085443,3.49493,3485.7,3485.0,0.71796]
[1735831085648,3.49493,3485.7,3484.9,3.6631]
[1735831085649,3.2078,3485.7,3484.9,3.6631]
[1735831086051,0.28716,3485.4,3485.3,0.28716]
[1735831086646,0.28718,3485.0,3484.9,0.4553]
[1735831086853,3.2078,3485.2,3484.5,1.15164]
[1735831087047,0.2872,3484.8,3484.7,0.2872]
[1735831087352,0.28718,3485.1,3485.0,0.28718]
[1735831087552,3.2078,3485.2,3484.5,1.15164]
[1735831087846,3.2078,3485.2,3485.1,0.28717]
[1735831088047,3.2078,3485.6,3484.5,1.15164]
[1735831088255,3.2078,3485.2,3484.5,1.15164]
[1735831088550,0.28719,3485.0,3484.9,0.28719]
[1735831088750,3.2078,3485.2,3484.5,1.15164]
[1735831089153,0.28716,3485.4,3485.3,0.28716]
[1735831089451,0.28718,3485.1,3485.0,0.28718]
[1735831089648,0.28717,3485.2,3485.1,0.28717]
[1735831089953,3.2078,3485.6,3484.7,0.71803]
[1735831090256,3.2078,3485.6,3484.8,4.5648]
[1735831090552,3.2078,3485.6,3485.5,0.28714]
[1735831091050,0.28714,3485.5,3485.2,0.8866]
[1735831091257,3.2078,3485.6,3485.2,0.8866]
[1735831091258,0.28716,3485.3,3485.2,0.45]
[1735831092449,0.28715,3485.4,3485.2,0.45]
[1735831092749,1.357,3486.1,3485.2,0.45]
[1735831092750,3.2078,3486.1,3485.2,0.45]
[1735831093053,3.2078,3486.1,3485.3,0.7179]
[1735831093253,3.2078,3486.1,3485.3,0.4366]
[1735831093443,0.2871,3486.0,3485.8,0.28711]
[1735831093649,3.49486,3486.6,3486.5,0.28706]
[1735831093856,3.49486,3486.6,3485.6,3.2078]
[1735831093857,0.28706,3486.5,3486.4,0.28706]
[1735831094158,3.49486,3486.6,3486.4,0.28706]
[1735831094351,0.28707,3486.4,3486.3,0.28707]
[1735831094557,5.6290716,3487.1,3486.0,3.2078]
[1735831094758,5.6290716,3487.1,3486.1,0.71772]
[1735831095059,0.28705,3486.6,3486.5,0.28705]
[1735831095349,5.6290716,3487.1,3486.5,0.71766]
[1735831095350,3.2078,3487.1,3486.5,0.71766]
[1735831095544,3.2078,3487.1,3487.0,0.28702]
[1735831095949,3.2078,3487.1,3487.0,0.73574492]
[1735831097454,3.49481,3487.1,3487.0,0.73574492]
[1735831097760,3.49481,3487.1,3487.0,0.44872492]
[1735831098451,0.28706,3486.6,3486.4,3.49486]
[1735831098659,0.28705,3486.6,3486.5,0.73579773]
[1735831098853,3.2078,3487.1,3486.5,0.44873773]
[1735831099055,0.28699,3487.4,3486.6,1.16637773]
[1735831099249,3.2078,3487.5,3487.4,0.28699]
[1735831099449,3.2078,3487.5,3486.8,0.71758]
[1735831099450,3.49478,3487.5,3486.8,0.71758]
[1735831099657,3.49478,3487.5,3486.9,0.599]
[1735831099960,3.2078,3488.6,3487.2,0.71751]
[1735831100262,3.2078,3488.6,3487.6,3.2078]
[1735831100452,3.2078,3488.6,3487.7,1.01733048]
[1735831100653,0.28695,3487.9,3487.7,1.30429048]
[1735831100852,0.28695,3487.9,3487.8,0.44863048]
[1735831101255,3.2078,3488.2,3487.3,0.572]
[1735831101461,0.28698,3487.5,3487.4,0.44859911]
[1735831101663,3.2078,3487.7,3487.1,3.2078]
[1735831101857,0.287,3487.2,3487.1,3.2078]
[1735831102053,0.28701,3487.1,3486.9,0.28702]
[1735831102358,35.11743,3487.6,3486.8,0.5687]
[1735831102359,3.2078,3487.2,3486.8,0.5687]
[1735831102659,3.2078,3487.8,3486.9,0.44867777]
[1735831102960,0.28697,3487.6,3487.4,0.28698]
[1735831103154,3.2078,3487.8,3487.0,0.44867777]
[1735831103354,3.2078,3487.8,3487.1,0.44867777]
[1735831103551,3.2078,3487.4,3487.1,0.44867777]
[1735831103855,0.28703,3487.0,3486.8,0.85573]
[1735831104057,3.49482,3487.0,3486.9,0.44866441]
[1735831104460,3.2078,3487.0,3486.2,3.2078]
[1735831104762,0.28707,3486.4,3486.3,0.44875423]
[1735831104955,0.7176,3486.8,3486.2,3.2078]
[1735831105160,0.28708,3486.3,3486.2,3.2078]
[1735831105359,0.28708,3486.3,3486.2,3.65657891]
[1735831105960,3.2078,3487.0,3486.2,3.65657891]
[1735831106157,3.2078,3487.0,3486.3,0.44877891]
[1735831106359,0.28704,3486.7,3486.5,0.28705]
[1735831106554,3.2078,3486.6,3485.6,3.2078]
[1735831106762,0.2871,3486.0,3485.2,3.2078]
[1735831106966,0.2871,3486.0,3485.7,0.28712]
[1735831107158,0.2871,3486.0,3485.2,3.2078]
[1735831108053,5.2871,3486.0,3485.9,0.33054]
[1735831108268,5.2871,3486.0,3485.9,0.119]
[1735831108459,0.28722,3484.6,3484.5,0.5738]
[1735831108659,0.28721,3484.8,3484.6,0.28721]
[1735831108854,0.28722,3484.6,3484.5,1.02276984]
[1735831109056,0.28719,3485.0,3484.5,1.02276984]
[1735831109263,3.2078,3485.1,3484.6,0.44896984]
[1735831109462,3.2078,3485.1,3484.7,0.44896984]
[1735831109770,3.2078,3485.1,3484.8,0.44896984]
[1735831109771,0.28718,3485.0,3484.8,0.44896984]
[1735831109966,3.49498,3485.1,3484.8,0.73616984]
[1735831110266,3.49498,3485.1,3484.9,0.44896984]
[1735831110267,3.2078,3485.1,3484.9,0.44896984]
[1735831110461,0.28718,3485.0,3484.9,0.44896984]
[1735831110668,0.28718,3485.0,3484.7,0.2872]
[1735831110869,3.2078,3485.1,3484.5,0.5738]
[1735831111168,0.28722,3484.6,3484.5,0.5738]
[1735831111362,0.28722,3484.6,3484.3,0.28723]
[1735831111556,3.2078,3485.1,3483.5,0.71827]
[1735831111764,3.2078,3484.7,3483.5,1.355]
[1735831112067,0.28724,3484.3,3484.2,0.44901993]
[1735831112267,3.2078,3484.3,3483.5,3.2078]
[1735831112459,3.2078,3484.3,3483.6,0.44907969]
[1735831112656,0.28729,3483.7,3483.6,0.44907969]
[1735831112864,0.28732,3483.4,3482.7,3.2078]
[1735831113062,3.2078,3483.5,3482.8,1.00896403]
[1735831113266,0.28734,3483.2,3482.9,0.73651403]
[1735831113567,0.28734,3483.2,3482.9,0.28735]
[1735831113872,0.28732,3483.4,3483.1,0.28734]
[1735831114169,3.2078,3483.5,3483.1,0.28734]
[1735831114170,3.49511,3483.5,3483.1,0.28733]
[1735831114666,2.74442682,3483.4,3482.1,3.2078]
[1735831114865,0.28737,3482.8,3482.4,0.28739]
[1735831115077,0.28735,3483.1,3482.7,0.28737]
[1735831115276,3.2078,3483.3,3482.5,3.2078]
[1735831115472,0.28733,3483.2,3482.7,0.28737]
[1735831115668,0.28736,3482.9,3482.5,3.2078]
[1735831115974,3.2078,3483.3,3482.5,3.2078]
[1735831116176,0.28735,3483.1,3482.6,0.28737]
[1735831116569,0.28735,3483.1,3482.7,0.28737]
[1735831117265,3.2078,3483.7,3483.0,2.42476658]
[1735831117471,0.28732,3483.4,3483.0,0.28734]
[1735831118081,0.28731,3483.5,3483.0,0.28734]
[1735831118275,3.2078,3483.7,3482.7,0.6001]
[1735831118571,3.2078,3483.7,3482.8,0.44881433]
[1735831118774,3.2078,3483.7,3483.6,0.2873]
[1735831118978,0.28727,3484.0,3483.6,0.2873]
[1735831119180,3.2078,3484.2,3484.0,0.28726]
[1735831119473,3.35977386,3484.6,3483.3,0.71831]
[1735831119474,6.56757386,3484.6,3483.8,5.63256658]
[1735831119778,6.56757386,3484.6,3483.9,0.6001]
[1735831119975,6.56757386,3484.6,3484.2,0.28725]
[1735831120171,0.28722,3484.5,3484.2,0.28725]
[1735831120473,3.2078,3484.6,3483.9,0.6001]
[1735831120977,3.49502,3484.6,3484.2,0.28724]
[1735831121386,3.2078,3484.6,3484.5,0.28722]
[1735831121771,0.28719,3484.9,3484.6,0.28721]
[1735831121967,3.49499,3485.0,3484.7,0.2872]
[1735831122176,2.42476658,3485.2,3484.2,3.2078]
[1735831122476,3.2078,3485.4,3484.2,3.2078]
[1735831122477,3.2078,3485.4,3484.3,0.71811]
[1735831122679,3.49495,3485.4,3485.1,0.28717]
[1735831122981,0.28716,3485.3,3485.0,0.28718]
[1735831123173,3.2078,3485.4,3484.7,3.2078]
[1735831123370,3.2078,3485.4,3484.4,0.5986]
[1735831123371,3.2078,3485.0,3484.4,0.5986]
[1735831123778,3.49498,3485.0,3484.7,0.2872]
[1735831124074,3.49498,3485.0,3484.4,0.5986]
[1735831124281,3.2078,3485.4,3484.4,0.5986]
[1735831124574,0.28721,3484.8,3484.5,0.28722]
[1735831124780,3.2078,3485.4,3484.6,0.28721]
[1735831124972,0.28716,3485.3,3484.6,0.28721]
[1735831125173,3.2078,3485.4,3484.4,0.5986]
[1735831125378,3.2078,3485.4,3484.6,0.28722]
[1735831125379,0.2872,3484.8,3484.6,0.28722]
[1735831125579,0.7179,3485.3,3484.4,0.88583]
[1735831125782,0.28722,3484.6,3484.4,0.88583]
[1735831126080,3.2078,3485.4,3484.7,0.28721]
[1735831126081,0.28719,3484.9,3484.7,0.28721]
[1735831126283,0.28719,3485.0,3484.8,0.2872]
[1735831126477,0.28719,3485.0,3484.4,0.5986]
[1735831126478,3.2078,3485.4,3484.6,3.2078]
[1735831126680,0.28716,3485.3,3484.9,0.28719]
[1735831126879,3.2078,3485.4,3484.6,3.2078]
[1735831127081,0.28721,3484.8,3484.6,3.2078]
[1735831127280,0.28721,3484.7,3484.6,3.49501]
[1735831127676,3.2078,3485.4,3484.6,3.2078]
[1735831127985,0.28721,3484.7,3484.6,3.2078]
[1735831128178,0.2872,3484.9,3484.7,0.2872]
[1735831128481,0.2872,3484.8,3484.6,3.49501]
[1735831128675,0.2872,3484.8,3484.7,0.28721]
[1735831129074,3.2078,3485.0,3484.4,0.5986]
[1735831129377,0.2872,3484.9,3484.8,0.2872]
[1735831129578,3.2078,3485.4,3484.9,0.28719]
[1735831129788,3.2078,3485.4,3484.6,3.2078]
[1735831130083,3.2078,3485.0,3484.4,0.5986]
[1735831130280,0.2872,3484.8,3484.7,0.2872]
[1735831130676,0.28721,3484.7,3484.6,0.28722]
[1735831131180,0.28722,3484.6,3484.5,0.28722]
[1735831131378,0.28722,3484.5,3484.4,0.5986]
[1735831131582,3.2078,3485.0,3484.4,0.5986]
[1735831131783,3.2078,3485.0,3484.9,0.28719]
[1735831131981,3.2078,3485.0,3484.5,0.5617]
[1735831132179,0.28719,3484.9,3484.5,0.5617]
[1735831132373,3.2078,3485.0,3484.9,0.28719]
[1735831132578,0.28718,3485.0,3484.8,0.28719]
[1735831132781,0.28719,3485.0,3484.8,0.2872]
[1735831132980,3.2078,3484.9,3484.4,0.5986]
[1735831133178,0.28722,3484.5,3484.4,0.5986]
[1735831134282,3.2078,3484.9,3484.4,0.5986]
[1735831134487,0.28722,3484.5,3484.4,0.5986]
[1735831135287,0.28722,3484.5,3484.4,0.88583]
[1735831135486,0.28722,3484.5,3484.4,0.5986]
[1735831135681,3.2078,3484.9,3484.4,0.5986]
[1735831136092,0.28722,3484.5,3484.4,0.88583]
[1735831136279,0.28722,3484.5,3484.4,0.5986]
[1735831138177,0.28724,3484.3,3484.2,3.2078]
[1735831138378,0.71803,3484.7,3484.2,0.44901869]
[1735831138575,0.28724,3484.3,3484.2,0.28725]
[1735831138787,0.28726,3484.1,3484.0,0.28726]
[1735831139183,3.2078,3484.4,3484.0,0.44903249]
[1735831139484,0.28727,3484.0,3483.9,0.28727]
[1735831139689,0.28727,3484.0,3483.9,0.4490676]
[1735831140584,0.71811,3484.3,3483.8,3.2078]
[1735831140585,0.28727,3483.9,3483.8,3.2078]
[1735831141680,0.28727,3483.9,3483.8,3.49508]
[1735831141883,0.28727,3483.9,3483.8,3.2078]
[1735831142080,3.2078,3484.4,3484.0,0.28726]
[1735831142081,0.28727,3484.1,3484.0,0.28726]
[1735831142286,3.2078,3484.4,3483.8,3.2078]
[1735831142485,0.28726,3484.2,3484.1,0.28725]
[1735831142886,0.28725,3484.3,3484.2,0.28724]
[1735831143086,3.2078,3484.8,3483.9,0.5706]
[1735831143286,3.2078,3484.8,3484.7,0.28721]
[1735831143485,2.2365163,3485.3,3484.6,3.2078]
[1735831143691,2.2365163,3485.3,3484.7,0.44901018]
[1735831144093,2.2365163,3485.3,3484.8,0.44901018]
[1735831144293,0.28719,3484.9,3484.8,0.73620018]
[1735831144487,0.28719,3484.9,3484.8,0.28719]
[1735831144689,0.28719,3484.9,3484.8,0.7361321]
[1735831144894,0.28719,3484.9,3484.8,0.4489421]
[1735831145490,0.28723,3484.4,3484.0,0.5678]
[1735831145695,3.2078,3484.9,3484.0,0.5678]
[1735831145890,0.28721,3484.7,3484.6,0.28722]
[1735831146095,2.42476658,3485.4,3484.6,0.44899717]
[1735831146096,5.63256658,3485.4,3484.6,0.44899717]
[1735831146302,0.28721,3484.7,3484.6,0.44899717]
[1735831146596,0.28721,3484.7,3484.2,3.92593]
[1735831146787,0.28721,3484.7,3484.6,0.28721]
[1735831146991,0.2872,3484.8,3484.7,0.2872]
[1735831147191,0.28721,3484.7,3484.6,0.44895137]
[1735831147896,0.28725,3484.2,3484.1,0.28725]
[1735831148092,0.28726,3484.1,3484.0,0.5678]
[1735831148597,0.28726,3484.1,3484.0,0.44906484]
[1735831149398,3.49506,3484.1,3484.0,0.44906484]
[1735831149789,3.2078,3484.1,3484.0,0.44906484]
[1735831149984,0.28725,3484.3,3484.2,0.28724]
[1735831150198,3.2078,3484.6,3484.0,0.44906484]
[1735831150398,0.28723,3484.5,3484.4,0.28723]
[1735831150690,3.2078,3484.6,3484.5,0.28722]
[1735831150896,2.2365163,3484.7,3484.6,0.28722]
[1735831151094,2.5237263,3484.7,3484.6,0.28722]
[1735831151296,5.7315263,3484.7,3484.6,0.44906484]
[1735831151503,5.4443163,3484.7,3484.5,0.5878]
[1735831151688,0.28725,3484.2,3484.1,0.5788]
[1735831151893,0.28722,3484.6,3484.1,0.44906524]
[1735831151894,3.2078,3484.3,3484.1,0.44906524]
[1735831152094,3.2078,3484.3,3484.0,0.28726]
[1735831152308,0.28726,3484.1,3484.0,0.28726]
[1735831152508,0.28728,3483.9,3483.8,0.28727]
[1735831152709,3.2078,3484.3,3483.8,0.44907797]
[1735831152908,3.2078,3484.2,3483.8,0.44907797]
[1735831153109,0.28727,3484.0,3483.9,0.44907797]
[1735831155210,2.5237663,3484.2,3484.1,0.28726]
[1735831155416,2.2365163,3484.2,3484.1,0.73633797]
[1735831155715,2.5237663,3484.2,3484.1,0.44907797]
[1735831155916,0.28725,3484.2,3484.1,0.44907797]
[1735831156920,0.28728,3483.8,3483.7,0.5878]
[1735831157213,0.28728,3483.8,3483.2,10.20568351]
[1735831157214,0.28732,3483.3,3483.2,9.91835351]
[1735831157513,0.28732,3483.3,3483.2,3.49513]
[1735831157723,5.63256658,3483.8,3483.2,3.49513]
[1735831157724,0.28732,3483.4,3483.3,0.28732]
[1735831157907,3.2078,3483.8,3483.2,3.6569598]
[1735831158107,0.2873,3483.6,3483.5,0.2873]
[1735831158312,5.63256658,3484.2,3483.3,0.4491598]
[1735831158618,5.63256658,3484.2,3483.7,0.28729]
[1735831158619,2.2365163,3483.8,3483.7,0.28729]
[1735831158815,2.2365163,3483.8,3483.7,1.3253498]
[1735831158816,0.3203163,3483.8,3483.7,1.3253498]
[1735831159116,3.35977386,3484.0,3483.9,0.28727]
[1735831159322,3.35977386,3484.0,3483.9,0.7364298]
[1735831159914,3.35977386,3484.0,3483.9,0.4491598]
[1735831160117,0.28727,3484.0,3483.9,0.4491598]
[1735831160821,0.2873,3483.6,3483.5,6.71055351]
[1735831161022,0.28733,3483.3,3483.2,0.28732]
[1735831161318,0.28733,3483.3,3483.2,0.73646489]
[1735831161713,0.28733,3483.3,3483.2,0.44914489]
[1735831162017,0.28733,3483.3,3483.2,0.73647489]
[1735831162416,0.28732,3483.4,3483.3,0.28732]
[1735831162815,3.35977386,3483.9,3483.3,0.44914489]
[1735831163017,3.35977386,3483.9,3483.6,0.28729]